{"text_format":"1","workbook":"xlsx","n_sheets":3,"sheets":["Spielzettel","RL Auswertung","EDV NR"],"not_rendered":{"charts":0,"images":1,"macros":1,"external_links":0,"defined_names":2,"comments":0,"pivot_tables":0},"unopened":[],"bounds":{"document_bytes":16777216,"sheet_cells":100000,"rows_first":2000,"rows_last":500,"rows_between":2000,"halvings":0,"cell_chars":16384,"cell_head_chars":4096},"cells_cut":0,"cells_raw":0,"read":"whole","date_system":"1900"}

{"sheet":"Spielzettel","index":0,"n_rows":27,"n_cols":14,"rows_kept":27,"cut":false,"hidden":false,"merged":[[15,2,15,3],[15,4,15,5],[6,13,6,20],[0,0,0,2],[0,4,0,5],[0,8,0,10],[2,2,2,3],[2,4,2,5]]}
["Vereinspokal 2016/17",null,null,"Datum",null,null,null,"Spielort",null,null,null,null,null,1]
[]
["Heimteam",null,"BV Aschaffenburg",null,"Damen",null,null,null,null,null,null,null,"Hier wird von 3 auf 4 Punkte umgestellt"]
["Spieler","Edv.Nr","Name","Spiel 1","Pkt 1","Spiel 2","Pkt 2","Spiel 3","Pkt 3","Pins","Pkt.Spieler",null,"Die Punkte für die Spieler müssen von Hand"]
[1,null,{"$f":"IF(ISERROR(VLOOKUP(B5,edv,2,FALSE)),\"\",VLOOKUP(B5,edv,2,FALSE))","v":""},null,null,null,null,null,null,{"$f":"D5+F5+H5","v":0},{"$f":"E5+G5+I5","v":0},null,"eingegeben."]
[2,null,"",null,null,null,null,null,null,{"$f":"D6+F6+H6","v":0},{"$f":"E6+G6+I6","v":0}]
[3,null,"",null,null,null,null,null,null,{"$f":"D7+F7+H7","v":0},0,null,null,"Durchführugsbestimmungen siehe Ligaheft"]
[4,null,"",null,null,null,null,null,null,{"$f":"D8+F8+H8","v":0},0]
[5,null,"",null,null,null,null,null,null,{"$f":"D9+F9+H9","v":0},0]
[6,null,"",null,null,null,null,null,null,{"$f":"D10+F10+H10","v":0},0]
[7,null,"",null,null,null,null,null,null,{"$f":"D11+F11+H11","v":0},0]
[8,null,"",null,null,null,null,null,null,0,0,"Ges.Pkt."]
[null,null,"Ergebnis Team",{"$f":"SUM(D5:D12,D14)","v":0},{"$f":"IF(D26<D13,N1+2,0)","v":0},{"$f":"SUM(F5:F12,F14)","v":0},{"$f":"IF(F26<F13,N1+2,0)","v":0},{"$f":"SUM(H5:H12,H14)","v":0},{"$f":"IF(H26<H13,N1+2,0)","v":0},0,{"$f":"E13+G13+I13","v":0},{"$f":"SUM(K5:K12)+K13","v":0}]
[null,null,"Roll-Of"]
[]
["Gastteam",null,"BV Blau-Gelb Frankfurt 2",null,"Damen"]
["Spieler","Edv.Nr","Name","Spiel 1","Pkt 1","Spiel 2","Pkt 2","Spiel 3","Pkt 3","Pins","Pkt.Spieler"]
[1,null,{"$f":"IF(ISERROR(VLOOKUP(B18,edv,2,FALSE)),\"\",VLOOKUP(B18,edv,2,FALSE))","v":""},null,null,null,null,null,null,{"$f":"D18+F18+H18","v":0},{"$f":"E18+G18+I18","v":0}]
[2,null,"",null,null,null,null,null,null,{"$f":"D19+F19+H19","v":0},{"$f":"E19+G19+I19","v":0}]
[3,null,"",null,null,null,null,null,null,0,0]
[4,null,"",null,null,null,null,null,null,0,0]
[5,null,"",null,null,null,null,null,null,0,0]
[6,null,"",null,null,null,null,null,null,0,0]
[7,null,"",null,null,null,null,null,null,0,0]
[8,null,"",null,null,null,null,null,null,0,0,"Ges.Pkt."]
[null,null,"Ergebnis Team",{"$f":"SUM(D18:D25,D27)","v":0},{"$f":"IF(D26>D13,N1+2,0)","v":0},{"$f":"SUM(F18:F25,F27)","v":0},{"$f":"IF(F26>F13,N1+2,0)","v":0},{"$f":"SUM(H18:H25,H27)","v":0},{"$f":"IF(H26>H13,N1+2,0)","v":0},0,{"$f":"I26+G26+E26","v":0},{"$f":"SUM(K18:K25)+K26","v":0}]
[null,null,"Roll-Of"]

{"sheet":"RL Auswertung","index":1,"n_rows":17,"n_cols":7,"rows_kept":17,"cut":false,"hidden":true,"merged":[]}
[{"$f":"Spielzettel!B5","v":0},{"$f":"Spielzettel!C5","v":""},{"$f":"Spielzettel!D5","v":0},{"$f":"Spielzettel!F5","v":0},{"$f":"Spielzettel!H5","v":0},{"$f":"Spielzettel!J5","v":0},{"$f":"COUNTIF(C1:E1,\">\"&0)","v":0}]
[{"$f":"Spielzettel!B6","v":0},{"$f":"Spielzettel!C6","v":""},{"$f":"Spielzettel!D6","v":0},{"$f":"Spielzettel!F6","v":0},{"$f":"Spielzettel!H6","v":0},{"$f":"Spielzettel!J6","v":0},{"$f":"COUNTIF(C2:E2,\">\"&0)","v":0}]
[{"$f":"Spielzettel!B7","v":0},{"$f":"Spielzettel!C7","v":""},{"$f":"Spielzettel!D7","v":0},{"$f":"Spielzettel!F7","v":0},{"$f":"Spielzettel!H7","v":0},{"$f":"Spielzettel!J7","v":0},0]
[{"$f":"Spielzettel!B8","v":0},{"$f":"Spielzettel!C8","v":""},{"$f":"Spielzettel!D8","v":0},{"$f":"Spielzettel!F8","v":0},{"$f":"Spielzettel!H8","v":0},{"$f":"Spielzettel!J8","v":0},0]
[{"$f":"Spielzettel!B9","v":0},{"$f":"Spielzettel!C9","v":""},{"$f":"Spielzettel!D9","v":0},{"$f":"Spielzettel!F9","v":0},{"$f":"Spielzettel!H9","v":0},{"$f":"Spielzettel!J9","v":0},0]
[{"$f":"Spielzettel!B10","v":0},{"$f":"Spielzettel!C10","v":""},{"$f":"Spielzettel!D10","v":0},{"$f":"Spielzettel!F10","v":0},{"$f":"Spielzettel!H10","v":0},{"$f":"Spielzettel!J10","v":0},0]
[{"$f":"Spielzettel!B11","v":0},{"$f":"Spielzettel!C11","v":""},{"$f":"Spielzettel!D11","v":0},{"$f":"Spielzettel!F11","v":0},{"$f":"Spielzettel!H11","v":0},{"$f":"Spielzettel!J11","v":0},0]
[{"$f":"Spielzettel!B12","v":0},{"$f":"Spielzettel!C12","v":""},{"$f":"Spielzettel!D12","v":0},{"$f":"Spielzettel!F12","v":0},{"$f":"Spielzettel!H12","v":0},{"$f":"Spielzettel!J12","v":0},0]
[{"$f":"Spielzettel!B18","v":0},{"$f":"Spielzettel!C18","v":""},{"$f":"Spielzettel!D18","v":0},{"$f":"Spielzettel!F18","v":0},{"$f":"Spielzettel!H18","v":0},{"$f":"Spielzettel!J18","v":0},0]
[{"$f":"Spielzettel!B19","v":0},{"$f":"Spielzettel!C19","v":""},{"$f":"Spielzettel!D19","v":0},{"$f":"Spielzettel!F19","v":0},{"$f":"Spielzettel!H19","v":0},{"$f":"Spielzettel!J19","v":0},0]
[{"$f":"Spielzettel!B20","v":0},{"$f":"Spielzettel!C20","v":""},{"$f":"Spielzettel!D20","v":0},{"$f":"Spielzettel!F20","v":0},{"$f":"Spielzettel!H20","v":0},{"$f":"Spielzettel!J20","v":0},0]
[{"$f":"Spielzettel!B21","v":0},{"$f":"Spielzettel!C21","v":""},{"$f":"Spielzettel!D21","v":0},{"$f":"Spielzettel!F21","v":0},{"$f":"Spielzettel!H21","v":0},{"$f":"Spielzettel!J21","v":0},0]
[{"$f":"Spielzettel!B22","v":0},{"$f":"Spielzettel!C22","v":""},{"$f":"Spielzettel!D22","v":0},{"$f":"Spielzettel!F22","v":0},{"$f":"Spielzettel!H22","v":0},{"$f":"Spielzettel!J22","v":0},0]
[{"$f":"Spielzettel!B23","v":0},{"$f":"Spielzettel!C23","v":""},{"$f":"Spielzettel!D23","v":0},{"$f":"Spielzettel!F23","v":0},{"$f":"Spielzettel!H23","v":0},{"$f":"Spielzettel!J23","v":0},0]
[{"$f":"Spielzettel!B24","v":0},{"$f":"Spielzettel!C24","v":""},{"$f":"Spielzettel!D24","v":0},{"$f":"Spielzettel!F24","v":0},{"$f":"Spielzettel!H24","v":0},{"$f":"Spielzettel!J24","v":0},0]
[{"$f":"Spielzettel!B25","v":0},{"$f":"Spielzettel!C25","v":""},{"$f":"Spielzettel!D25","v":0},{"$f":"Spielzettel!F25","v":0},{"$f":"Spielzettel!H25","v":0},{"$f":"Spielzettel!J25","v":0},0]
[null,null,null,null,{"$f":"COUNTA(C17:D17)","v":0},null,0]

{"sheet":"EDV NR","index":2,"n_rows":1264,"n_cols":2,"rows_kept":1264,"cut":false,"hidden":true,"merged":[]}
["EDV-Nr.","Name"]
[8096,"Bier Harald"]
[33085,"Bui Si Ham"]
[15967,"Claus Markus"]
[15731,"Diehl Karl"]
[33004,"Dierks Carsten"]
[8318,"Fischer Rainer"]
[8322,"Flaig Achim"]
[33088,"Herbig Andreas"]
[15894,"Hofstädter Stephan"]
[33072,"Hönicke Volker"]
[33038,"Knobloch Horst"]
[15845,"Kohle Richard"]
[8701,"Krüger Helmut"]
[15730,"Netzker Lars"]
[33047,"Ries Volker"]
[15844,"Rudolf Torsten"]
[15921,"Rudolf Nicole"]
[15104,"Schmelz Peter"]
[15108,"Schmidt Klaus"]
[15703,"Schnellbacher Peter"]
[15874,"Stankowic Sascha"]
[15234,"Stelzer Rudolf"]
[15268,"Tezak Dagmar"]
[15269,"Tezak Janko"]
[15912,"Tezak Franz"]
[15741,"Wilson Joseph"]
[15757,"Wolf Harald"]
[8002,"Ackermann Jürgen"]
[15816,"Bikowski Manuel"]
[15817,"Blank Kevin"]
[15697,"Bott Timo"]
[15949,"Bott Michael"]
[33041,"Braun Marcel"]
[15727,"Breitwieser Werner"]
[15576,"Demski Claudia"]
[15695,"Demski Tobias"]
[15572,"Eke Ugur"]
[8285,"Farmer Mandy-Sharon"]
[15819,"Göbel Laura"]
[15728,"Grosche Maik"]
[15698,"Herling Hagen"]
[8545,"Hitzel Walter"]
[15501,"Hitzel Sascha"]
[8597,"Janowski Siegfried"]
[15820,"Khumcharoen Krisna"]
[15729,"Köhler Nicole"]
[8802,"Mertink Jens"]
[8956,"Popiol Bernd"]
[8957,"Popiol Christina"]
[8958,"Popiol Inke"]
[8978,"Rahaus Stefan"]
[15846,"Roth Christian"]
[15041,"Rückert Markus"]
[15045,"Ruhlmann Thomas"]
[15726,"Schaffrina Egon"]
[33021,"Schuster Markus"]
[15209,"Spiegler Bernd"]
[15758,"Stolz Torsten"]
[15323,"Vitasovic Kresimir"]
[15686,"Becker Holger"]
[8304,"Fink Peter"]
[8694,"Kraft Edgar"]
[33051,"Neubauer Eva"]
[15145,"Schöneck Hans-Werner"]
[15173,"Schwermer Thomas"]
[15230,"Stein Angelika"]
[15294,"Trebes Stefan"]
[15295,"Trebes Thomas"]
[33052,"Trebes Kerstin"]
[15867,"Welkerling Hans"]
[15826,"Aumann Torben"]
[8039,"Baker Richard"]
[33026,"Balzer Phyllis"]
[33043,"Balzer Armin"]
[8068,"Becker Elke"]
[15657,"Becker Britta"]
[8072,"Becker-Daschmann Dagmar"]
[15898,"Belardi Tanja"]
[15646,"Beyer Petra"]
[15704,"Biskoping Robin"]
[15896,"Bopf Alexander"]
[8140,"Braun Hartmut"]
[8209,"Daschmann Helmut"]
[15746,"Ebell Björn"]
[15762,"Fritzjus Jasmin"]
[15644,"Gilbert Bertram"]
[6347,"Gollnow Sabrina"]
[8435,"Güldner Sascha"]
[8462,"Harrison Mark"]
[8509,"Henrich Elvira"]
[8511,"Henrich Heinz"]
[8512,"Henrich Katharina"]
[8559,"Höpfel Brigitte"]
[15664,"Kilsbach Thomas"]
[8668,"Koch Birgit"]
[15821,"Körbitz Dirk"]
[14034,"Lohmar Klaus"]
[6432,"Moritz Ramon"]
[15973,"Noack Thomas"]
[8910,"Opper Andreas"]
[8911,"Opper Michael"]
[8938,"Pest Hagen"]
[15645,"Porter Tanja"]
[8976,"Räder Peter"]
[15942,"Schaaf Sandro"]
[15095,"Schinkario Thomas"]
[15133,"Schneider Volker"]
[15143,"Schön Justus"]
[33035,"Teuser Franziska"]
[15723,"Uwekoolani Daniel"]
[15375,"Wiesner Christoph"]
[8062,"Beck Dietmar"]
[33077,"Becker Aileen"]
[8077,"Beissler Andrea"]
[8086,"Berardi Danny"]
[8087,"Berardi Danny"]
[8089,"Berardi Stacy"]
[8107,"Blank Franz"]
[33068,"Bruckmann Heike"]
[8169,"Burgess Mark"]
[33013,"Burgess David"]
[8186,"Carl Britta"]
[15835,"Fenderl Stefan"]
[8352,"Fries Karlheinz"]
[8353,"Fries Marcel"]
[15951,"Fritsche-Syndikus Michael"]
[8356,"Frobenius Sven"]
[8718,"Frobenius Romina"]
[8472,"Heeg Herbert"]
[8473,"Heeg Renate"]
[8474,"Heeg Sonja"]
[15834,"Heeg Heiko"]
[15833,"Hein Marco"]
[8491,"Held Joshua"]
[8497,"Heller Andreas"]
[8548,"Hock Thomas"]
[8583,"Inglese Sandro"]
[8590,"Jambresic Yvonne"]
[15840,"Knecht Timo"]
[15887,"Krebs Thomas"]
[15919,"Kütter Stefan"]
[8752,"Löffler Monika"]
[33012,"Löffler Dieter"]
[8624,"Melching Janin"]
[8843,"Merkel Gina-Maria"]
[15608,"Merkel Ralf"]
[15612,"Merkel Marcel"]
[8812,"Michalak Maria"]
[15775,"Nagel Christopher"]
[8903,"Och Jürgen"]
[8949,"Pilo Salvatore"]
[8954,"Pöhner Cornelia"]
[15398,"Reckemeier Michaela"]
[15009,"Reuss Annemarie"]
[15010,"Reuss Bernd"]
[15011,"Reuss Dominic"]
[15021,"Röder Britt"]
[15087,"Schiller Joachim"]
[15106,"Schmidt Jennifer"]
[15201,"Sommer Gabriele"]
[15202,"Sommer Rainer"]
[15976,"Stapper Tim"]
[15812,"Thierolf Alois"]
[15356,"Weis Björn"]
[15829,"Wiederhold Ann-Kathrin"]
[15403,"Wüst Angela"]
[8001,"Ackermann Brigitte"]
[8029,"Aufschläger Jochen"]
[8208,"Dähler Mark"]
[15886,"Dozckal Thomas"]
[8272,"Emmerich Wolfgang"]
[8332,"Forster Florian"]
[8335,"Forster Fred-Fabian"]
[302,"Hemmelmann Dirk"]
[8514,"Henrich Sven"]
[8521,"Herre Manuela"]
[8529,"Hess Tobias"]
[8670,"Koch Monika"]
[8671,"Koch Robert"]
[8759,"Lucke Joachim"]
[8760,"Lucke Marc"]
[8796,"Meissner Alexandra"]
[8870,"Naujoks Angela"]
[8922,"Pachonik Benjamin"]
[960,"Polte Ulrike"]
[7726,"Prell Patrick"]
[15183,"Seifert Barbora"]
[15529,"Tezak-Kilb Nicole"]
[15270,"Tharra Marina"]
[15389,"Wittenborg Elke"]
[8341,"Franke Helmut"]
[8506,"Henkel Klaus"]
[8555,"Hofmann Christof"]
[8742,"Lendzian Rainer"]
[8789,"Maul Manfred"]
[15042,"Rüffer Andreas"]
[15516,"Schmidt Robert"]
[15839,"Thiel Manfred"]
[33024,"Thiel Uwe"]
[15344,"Watje Peter"]
[33028,"Angersbach Christina"]
[15738,"Beute Carsten"]
[8181,"Callsen Thomas"]
[33001,"Hampel Peter"]
[8499,"Heller Roswitha"]
[15848,"Jünemann Ulrike"]
[15786,"Küllmer Thomas"]
[33027,"Mansel Klaus"]
[15972,"Müller Tobias"]
[15851,"Mütze Kai"]
[15136,"Scholdra Peter"]
[15605,"Schrage Carlo"]
[15847,"Schrage Martina"]
[15865,"Schulz Michaela"]
[15975,"Spohr Philipp"]
[33016,"Triebel Daniela"]
[15849,"Widuckel Renè"]
[15523,"Cheklal Djamel"]
[15654,"Finkenauer Sandra"]
[8316,"Fischer Peter"]
[8554,"Hoffmann Sonja"]
[15524,"Hofmann Mario"]
[15747,"Hofmann Susan"]
[10022,"Hüllenhütter Claudia"]
[8699,"Krenzer Monika"]
[8736,"Lausmann Jürgen"]
[8753,"Long Diana"]
[8845,"Müller Claudia"]
[8853,"Müller Jochen"]
[8890,"Nicolaus Veit"]
[15027,"Rogat Curd"]
[15137,"Scholl Hans"]
[15199,"Slawik Erwin"]
[15240,"Steul Susan"]
[15247,"Stolz Christian"]
[15946,"Teske Martin"]
[15316,"Veith Marcus"]
[8012,"Albert Markus"]
[15964,"Barke Carsten"]
[15965,"Barke-Ziegler Elke"]
[15569,"Beumer Christoph"]
[33017,"Bräuner Markus"]
[33054,"Göbel Marcel"]
[10304,"Heber Bernd"]
[33056,"Heim Melanie"]
[8488,"Heinrich Thorsten"]
[8806,"Meyer Helmut"]
[10301,"Mogk Dominik"]
[8835,"Mondorf Alexander"]
[15598,"Rott Waltraud"]
[22157,"Sager Sven"]
[33053,"Seel Marcel"]
[15575,"Seemann Thomas"]
[10300,"Seyfarth Robert"]
[33055,"Siebert Björn"]
[15830,"Wagner Simon"]
[10068,"Winter Asko"]
[33057,"Wünning Steve"]
[33058,"Ziegler Andreas"]
[8020,"Andersch Andreas"]
[15514,"Behr Thomas"]
[24169,"Brach Patrick"]
[8277,"Erhardt Alexander"]
[15371,"Fuchs Anatol"]
[15542,"Fuchs Olga"]
[15871,"Garcia Prol Antonio"]
[15651,"Günther Hubert"]
[15870,"Günther Christof"]
[8438,"Güttich Sven"]
[33020,"Henze Markus"]
[15547,"Knöll Vitali"]
[8857,"Müller Michael"]
[15546,"Rifinius Jakob"]
[15798,"Saalbach Daniel"]
[15672,"Schäfer Daniel"]
[15171,"Schweitzer Jan"]
[8010,"Alabiso Luana"]
[15678,"Atmatzidis Charalambos"]
[8088,"Berardi Sophia"]
[8125,"Bohrmann Berthold"]
[8126,"Bohrmann Tim"]
[8163,"Bucsa Andone"]
[8235,"Diehl Claudia"]
[8237,"Diehl Johann"]
[8260,"Drössel Andrew"]
[15479,"Drössel Detlev"]
[8270,"Elsenberger Horst"]
[8295,"Feller Thomas"]
[8439,"Haas Anna-Maria"]
[8447,"Hagen Elfie"]
[33078,"Hargus Rodney"]
[15753,"Hörner Sascha"]
[15633,"Huber Sebastian"]
[33089,"Hüllenhütter Peter"]
[15478,"Kluge Christian"]
[8679,"Kompauer Eva-Maria"]
[8683,"Könner Horst"]
[15652,"Lange Heiner"]
[15971,"Matle Silvia"]
[15634,"Mirza Baber-Jan"]
[8941,"Petri Christian"]
[15922,"Plaumann Kay"]
[15679,"Rabenseifner René"]
[15006,"Retke Hannelore"]
[15983,"Richter Nick"]
[15855,"Schugt Brigitte"]
[15182,"Seib Petra"]
[15838,"Smith Terence"]
[15761,"Sperle Calvin"]
[33008,"Tobi Valentin"]
[15301,"Triesch Robert"]
[15998,"Vogt Michael"]
[15349,"Weidl Sebastian"]
[15760,"Wiegand Ilias"]
[15402,"Wünschirs Daniel"]
[15525,"Wünschirs Heiko"]
[15244,"Stolte Gabriele"]
[15245,"Stolte Günther"]
[15913,"Berner Sascha"]
[14079,"Czermak Wolfgang"]
[33007,"Fasser Rupert"]
[33065,"Gaither James"]
[33102,"Gaither Janette"]
[15920,"Gerstel Uwe"]
[33023,"Hacher Carina"]
[15906,"Hartmann Heinz"]
[33063,"Hebenstreit Christina"]
[15953,"Heim Karl"]
[15907,"Hellersberg Dulce"]
[33062,"Jäger Lisa"]
[14002,"Keil Patrick"]
[14684,"Keil Dominik"]
[14689,"Keil Hans-Peter"]
[15959,"König Florian"]
[33064,"Kruse Lowell"]
[15902,"Kuderna Bianka"]
[15904,"Kuderna Alexander"]
[33006,"Lauber Melanie"]
[15793,"Leonhardt Yves"]
[15905,"Listmann Thorsten"]
[15954,"Mlotek Marc"]
[15797,"Modrak Rüdiger"]
[15960,"Neff Nico"]
[14693,"Prell Christin"]
[15837,"Reich Michael"]
[15899,"Reich Peggy"]
[15900,"Reich Bianca"]
[33005,"Rosenboom Nicole"]
[15836,"Schedlbauer Robert"]
[33079,"Schmalkalt Tobias"]
[15952,"Thatcher Daniel"]
[15903,"Voelker-Hoyns Heike"]
[15873,"Westram Boris"]
[15800,"Wiegand Daniel"]
[15794,"Winkler Peter"]
[15795,"Wright Claudia"]
[15796,"Wright Mark"]
[15901,"Wright David"]
[8099,"Bigall Iris"]
[8385,"Georg Sebastian"]
[15082,"Scheuermann Patrizia"]
[15351,"Weihert Christine"]
[8098,"Bigall Eileen"]
[8100,"Bigall Marcel"]
[8101,"Bigall Rene"]
[8102,"Bigall Volker"]
[8501,"Hellmuth Wilhelm"]
[8646,"Kistinger Bernhard"]
[8797,"Meissner Hans-Joachim"]
[15081,"Scheuermann Ludwig"]
[15083,"Scheuermann Sybille"]
[15138,"Scholz Erhard"]
[15161,"Schulz Markus"]
[15220,"Stapf Thorsten"]
[15380,"Willems Jan"]
[15811,"Zander Michael"]
[8363,"Gadebusch Astri-Siri"]
[15862,"Mohr Christina"]
[15863,"Persch Martina"]
[15660,"Rehbein Nicole"]
[15933,"Agerbo Jesper"]
[15988,"Bierschenk Eberhard"]
[8183,"Canady David"]
[8196,"Collmann Dieter"]
[26048,"Deller Manuel"]
[15955,"Hanke Jürgen"]
[15767,"Herzog Thomas"]
[15602,"Hilgenberg Björn"]
[8570,"Hübner Rolf"]
[15705,"Hübner Dennis"]
[8619,"Kallup Werner"]
[15494,"Kessler Benjamin"]
[18802,"Konieczny Bodo"]
[15710,"Krnjic Goran"]
[8750,"Lischka Klaus-Uwe"]
[8764,"Luoto Mika"]
[15876,"Mand Lothar"]
[15613,"Moor Paul"]
[24826,"Morig Oliver"]
[12494,"Obst Sascha"]
[15614,"Palermaa Osku"]
[33073,"Pape Daniel"]
[8930,"Pelz Jürgen"]
[8973,"Racpan Christian"]
[32042,"Rischer Marco"]
[1051,"Schröder Timo"]
[15186,"Senf Peter"]
[25587,"Teece Richard"]
[15302,"Tscharke Uwe"]
[18800,"Völkel Dirk"]
[15781,"Wells John"]
[26157,"Winternheimer Pascal"]
[8212,"Daute Wolfgang"]
[8228,"Devine David"]
[8243,"Dietrich Dieter"]
[8244,"Dietrich Timo"]
[8284,"Farmer Francis"]
[15889,"Finn Marco"]
[8315,"Fischer Peter"]
[8436,"Gültling Reiner"]
[8484,"Heindl Manfred"]
[15771,"Heininger Jörg"]
[8523,"Herrmann Karl-Heinz"]
[8643,"Kimbell Irmtraut"]
[15792,"Kimbell Michael"]
[8211,"Meegdes Silvia"]
[15606,"Meegdes Marcel"]
[8875,"Neiczer Ladislaus"]
[8876,"Neiczer Markus"]
[15064,"Schäfer Jürgen"]
[15099,"Schley Gisela"]
[15100,"Schley Hans-Joachim"]
[15888,"Wolf Heike"]
[33084,"Zentgraf Roland"]
[8174,"Büttner Gabriele"]
[8175,"Büttner Stefan"]
[8900,"Obst Mike"]
[8901,"Obst Roland"]
[8904,"Olbrich Manfred"]
[15892,"Olbrich Bernd"]
[15035,"Röske Dietmar"]
[15241,"Stöhr Anton"]
[15242,"Stöhr Ulrike"]
[15286,"Tippmann Gabriele"]
[15287,"Tippmann Harry"]
[15305,"Uhlig Donald"]
[15383,"Winter Franz"]
[15530,"Arold Daniel"]
[8046,"Barth Marcel"]
[8220,"Dengs Heinz"]
[8252,"Doering Wolfgang"]
[15675,"Doffin Wolfgang"]
[33061,"Doffin Rebecca"]
[33044,"Firnschild Dirk"]
[15774,"Franz Thomas"]
[15571,"Görlich Benjamin"]
[8426,"Gröger Andrè"]
[15527,"Grunenberg Anja"]
[15528,"Grunenberg Sven"]
[15803,"Haase Reiner"]
[15748,"Haibach Hans Jürgen"]
[10059,"Hoffmann Heinz-Thomas"]
[15869,"Jennrich Benjamin"]
[15570,"Kärmer Björn"]
[8708,"Küchler Jürgen"]
[8769,"Mader Gabi"]
[8770,"Mader Michael"]
[15859,"Malow Marco"]
[15674,"Rahner Viktor"]
[15092,"Schinkario Helmut"]
[15094,"Schinkario Nicole"]
[15434,"Schröder Michaela"]
[15435,"Schröder Sarah"]
[15577,"Schröder Philip"]
[15151,"Schubert Mike"]
[15992,"Schubert Nick"]
[15257,"Struth Harald"]
[15264,"Tardt Axel"]
[15324,"Vogel Bernd"]
[15754,"Vornwald Chantal"]
[15390,"Wohlfarth Hans-Jürgen"]
[8005,"Adkins Laressa"]
[8054,"Baur Winfried"]
[8064,"Beckel Martina"]
[15169,"Braunstein Michael"]
[8155,"Brötz Heinz"]
[8399,"Filor Alexandra"]
[8359,"Fuertes Alfonso"]
[8360,"Fuertes Daniel"]
[8361,"Fuertes Rosemarie"]
[1447,"Gabel Janine-Manuela"]
[14633,"Geißler Nadine"]
[8400,"Göbel Dennis"]
[8403,"Göbel - Janka Michaela"]
[8486,"Heine Günter"]
[10114,"Heuser Thomas"]
[15616,"Hoffmann Marc"]
[8582,"Ilzhöfer Ronald"]
[15808,"Kiefel Alexander"]
[8687,"Kosanke Bernd"]
[15785,"Kuhweide Stephan"]
[15617,"Langbein Simon"]
[15480,"Lofink Christine"]
[8823,"Mirschel Andrea"]
[8955,"Poller Armin"]
[15596,"Poller Elke"]
[15787,"Schädler Sven"]
[15071,"Schaubach Manfred"]
[15076,"Schepper Thomas"]
[15229,"Steh Sarah"]
[15284,"Timter Vanessa"]
[15766,"Wiederhold Alexander"]
[15662,"Becker Daniel"]
[8283,"Färber Klaus"]
[10369,"Gruchot Dennis"]
[15744,"Meinhardt Ralf"]
[8871,"Naujoks Christoph"]
[8872,"Naujoks Jürgen"]
[8885,"Neumann Heike"]
[15074,"Schendel Jörg"]
[15189,"Serowy Gerd"]
[15720,"Trejic Senijad"]
[15422,"Zimmermann Thorsten"]
[15428,"Zöller Dieter"]
[8177,"Caldwell Philipp"]
[8178,"Caldwell Rita"]
[8179,"Caldwell Thomas"]
[15496,"Eimuth Natascha"]
[15804,"Flick Peter Uwe"]
[15805,"Flick Dominik"]
[33092,"Gallo Adrian"]
[8371,"Gebhardt Carsten"]
[15517,"Gerlach Wolfram"]
[8498,"Heller Dirk"]
[10243,"Herbig Frank"]
[2217,"Jung Benjamin"]
[15484,"Klein Jan"]
[15498,"Krüger Jasmin"]
[33093,"Lindenau Tobias"]
[15993,"Messmer Christopher"]
[15649,"Nater David"]
[15653,"Neß Daniel"]
[14076,"Opfer Manfred"]
[26547,"Palumbo William"]
[4024,"Rolli Maik"]
[15825,"Rousselange Florian"]
[15932,"Santini Raffaele"]
[15072,"Schauerte Christoph"]
[15755,"Schlauch Philipp"]
[15818,"Schmidt Domenik"]
[10366,"Siemonsen Melanie"]
[218,"Stichling Christopher"]
[28123,"Strauß Enrico"]
[26406,"Thun Michael"]
[26489,"Thun Sven"]
[15335,"Walter Benedikt"]
[15336,"Walter Christopher"]
[15411,"Zabelt Rene"]
[15431,"Zuhl Markus"]
[15909,"Zuhl Maximilian"]
[8032,"Aust Karsten"]
[8034,"Auth Corinna"]
[8035,"Auth Ralf"]
[15991,"Bauer Dominik"]
[8095,"Bienert Petra"]
[15969,"Duske Dennis"]
[8307,"Firmbach Volker"]
[8330,"Förster Carola"]
[8336,"Förster Heinz"]
[13056,"Gladigau Philipp"]
[15813,"Hakin Fabio"]
[8485,"Heine Frank"]
[8487,"Heine Klaudija"]
[8515,"Hensel Bernd"]
[15810,"Heuckeroth Anna"]
[8571,"Hüllenhütter Wolfgang"]
[8584,"Jackwerth Klaus"]
[15453,"Jürgens Elisabeth"]
[8663,"Knischewski Petra"]
[8682,"König Uta"]
[33039,"Krug Claudia"]
[15944,"Kuhn Dagmar"]
[8709,"Kühn Anita"]
[15918,"Lamprecht Angelika"]
[8771,"Mader Sven"]
[8860,"Müller Susi"]
[15636,"Müller Lisa"]
[8660,"Muth Andrea"]
[8867,"Muth Michael"]
[8873,"Naumann Edith"]
[8874,"Naumann Hans-Jürgen"]
[8896,"Norz Norbert"]
[8916,"Ott Andreas"]
[8944,"Pfaff Tom"]
[15769,"Pohl Kanittha"]
[15005,"Reitze Klaus"]
[15543,"Rifinius Irina"]
[15020,"Robison Dale"]
[15925,"Roloff Patrick"]
[15040,"Roy Christopher"]
[15677,"Roy Jessica"]
[15112,"Schmidt Petra"]
[15149,"Schröter Helge"]
[15166,"Schwab Christiane"]
[15168,"Schwäch Stefan"]
[15170,"Schwarz Wolfgang"]
[15190,"Sherman Edward"]
[15239,"Steul Karl-Heinz"]
[8785,"Weitzel Cornelia"]
[15361,"Weitzel Matthias"]
[15392,"Wolf Lucia"]
[15963,"Wolf Klaudia"]
[15408,"Yowell Vernon"]
[8055,"Bayer Harry"]
[8057,"Bayer Peter"]
[8090,"Bernhardt Klaus"]
[8204,"Curti Michael"]
[8406,"Goedeke Roman"]
[8566,"Horne Barry"]
[8669,"Koch Florian"]
[8681,"Kompauer Sven"]
[8685,"Kopp Erich"]
[8725,"Lapp Jörg"]
[8754,"Long James"]
[26403,"Louridas Michael"]
[8969,"Prosch Stefan"]
[8999,"Reinsch Sebastian"]
[15228,"Steh Sandro"]
[15273,"Then Oliver"]
[15325,"Vogel Stefan"]
[15420,"Zimmermann Hans"]
[8130,"Born Frank"]
[8287,"Fauerbach Matthias"]
[8452,"Hahn Stefan"]
[8608,"Jost Manfred"]
[8726,"Lapp Peter"]
[8768,"Mader Florian"]
[8798,"Melching Günter"]
[8821,"Milnikel Frank"]
[8851,"Müller Hans Jürgen"]
[8658,"Nau Marcel"]
[8953,"Pohl Frantz"]
[15256,"Strunz Rainer"]
[15676,"Weingärtner Elroy"]
[8143,"Braut Thomas"]
[15739,"Claus Horst"]
[8921,"Ozwirk Heinz"]
[8961,"Pratz Marcus"]
[15801,"Schaub Claas"]
[15185,"Seipp Martin"]
[15226,"Stegenwalner-Schwalb Petra"]
[8111,"Blickhan Richard"]
[8199,"Conrad Martin"]
[8402,"Göbel Gisela"]
[8744,"Morche Andrea"]
[8839,"Morche Jochen"]
[8990,"Regenfuss Norbert"]
[15070,"Scharnowski Waldemar"]
[15110,"Schmidt Michael"]
[15157,"Schultheiss Michael"]
[33049,"Vogelrieder Josef"]
[8024,"Appel Rolf"]
[8091,"Besser Beate"]
[8215,"Day Claudia"]
[8263,"Duki Hildegard"]
[8326,"Förster Gerd"]
[8388,"Geretshauser Kurt"]
[15702,"Laube Michael"]
[15857,"Ludwig Manuela"]
[15814,"Lütjeharms Niklas"]
[15815,"Lütjeharms Henrik"]
[8825,"Modenbach Christian"]
[8826,"Modenbach Inge"]
[15927,"Noll Jürgen"]
[8929,"Peluso Alessandro"]
[8942,"Petry Inge"]
[15069,"Schafnitzel Inge"]
[15999,"Schellhammer Maik"]
[15107,"Schmidt Jutta"]
[15650,"Shoebottom Mark"]
[8038,"Tubklay Sununta"]
[15699,"Vogt Matthias"]
[14216,"Weber Tassanee"]
[15367,"Werner Walter"]
[15388,"Wittenborg Eckhard"]
[15413,"Zander Annette"]
[15770,"Zander Jürgen"]
[33002,"Altunok Ümit"]
[8117,"Bodem Andreas"]
[8261,"Druschel Siegfried"]
[8296,"Ferenczi Stephan"]
[8297,"Fernandez Andres"]
[8320,"Fischer Werner"]
[15985,"Gangloff Thomas"]
[8454,"Hamburger Fred"]
[15555,"Härtl Rudolf"]
[15520,"Hein Karsten"]
[8493,"Heldner Bruno"]
[8536,"Hidde Jens"]
[6113,"Kehr Marco"]
[15984,"Keiser Alexander"]
[15513,"Kippes Ralf"]
[8684,"Konway Karl"]
[15917,"Körner Wolfgang"]
[10215,"Mirau Dennis"]
[8849,"Müller Edgar"]
[15661,"Roas Jörg"]
[15086,"Schild Frank"]
[15109,"Schmidt Martin"]
[15860,"Schütz Patrick"]
[15206,"Speckmann Armin"]
[10164,"Szczypski Jürgen"]
[8156,"Brückner Achim"]
[8017,"Amler Patrick"]
[8051,"Bauer Jürgen"]
[8056,"Bayer Julia"]
[8058,"Bayer Thomas"]
[8118,"Bodem Anja"]
[8147,"Bretthauer Ralf"]
[8166,"Buhl Georg"]
[8167,"Buhl Martin"]
[8184,"Cano Sanchis Rita"]
[10026,"Dreher Stefan"]
[8348,"Friedrich Heike"]
[8349,"Friedrich Michael"]
[33045,"Fülling Florian"]
[8398,"Göb Patrick"]
[33098,"Grünheid Malte"]
[8661,"Kleppig Constanze"]
[10261,"Klüh Heidi"]
[33003,"Koths Katrin"]
[8892,"Niemand Wolfgang"]
[8927,"Pauli Sven"]
[33076,"Polyannis Athanasios"]
[33099,"Roß Nicole"]
[15097,"Schlappa Norbert"]
[15098,"Schlappa Wolfgang"]
[15732,"Schlappa Martin"]
[8751,"Schmidt Melanie"]
[15123,"Schmidt Thomas"]
[15433,"Schottling Andreas"]
[9201,"Schünzel Ralph"]
[15203,"Sommer Walter"]
[15328,"Vornwald Beatriz"]
[15641,"Vornwald Knut"]
[15789,"Vornwald Nils"]
[15418,"Ziebach Mirko"]
[15756,"Becker Patrick"]
[8043,"Bartaska Jonas"]
[8092,"Betz Renate"]
[8119,"Bodis Karin"]
[8480,"Heilmann Harry"]
[8481,"Heilmann Inge"]
[15861,"Herbert Peter"]
[15895,"Herbert Claudia"]
[8606,"Jokisch Matthias"]
[8662,"Klier Reinhard"]
[33108,"Kmiecik Marius"]
[8697,"Kraus Monika"]
[15463,"Kretschmer Karsten"]
[15461,"Krüger Petra"]
[15462,"Krüger Michael"]
[8808,"Kuchenbrod Frank"]
[8810,"Kuchenbrod Gabriele"]
[8790,"Mautz Robert"]
[33109,"Mayer Ursula"]
[8791,"Mayer Melanie"]
[15712,"Model Ralf"]
[8836,"Morbe Manfred"]
[8837,"Morbe Sandra"]
[8838,"Morbe Sieglinde"]
[8889,"Nickusch Michael"]
[8986,"Rauthe Alexander"]
[33071,"Ries Tobias"]
[15052,"Sabo Ivan"]
[10178,"Scheibe Thomas"]
[15126,"Schnee Florian"]
[8482,"Schott Ivonne"]
[15841,"Schott Michael"]
[15187,"Senkbeil Gerhard"]
[33104,"Smith Wyatt"]
[15215,"Staab Manfred"]
[15238,"Stephan Peter"]
[15842,"Stephan Timm"]
[15669,"Theis-Franke Jörg"]
[15341,"Warner Kai"]
[15362,"Wendler Manuela"]
[15363,"Wendler Stefan"]
[15365,"Wenzel Uwe"]
[8060,"Becht Franz"]
[8150,"Breuers Edda"]
[8305,"Fink Ulrike"]
[8310,"Fischer Alfred"]
[8312,"Fischer Ingeborg"]
[15578,"Fischer Oliver"]
[8323,"Flassig Roland"]
[8416,"Grechenig Bianca"]
[15475,"Hentschel Klaus Dieter"]
[8609,"Jost Werner"]
[8674,"Köhler Andreas"]
[15629,"Nurmann Jens"]
[15476,"Rösler Bernd"]
[15132,"Schneider Karl-Heinz"]
[15856,"Schneider Steffanie"]
[15160,"Schulz Herbert"]
[15163,"Schulz Wolfhard"]
[15579,"Schulz Christian"]
[15192,"Siedentopf Hannelore"]
[15193,"Siedentopf Peter"]
[15381,"Willing Helmuth"]
[15432,"Zwirnmann Rosi"]
[15714,"Bartossek Peter"]
[15725,"Berz Wolfgang"]
[8103,"Bileci Nunzio"]
[15713,"Holzwarth Thomas"]
[15877,"Holzwarth Christian"]
[15038,"Rothenhäuser Bernd"]
[15039,"Rothenhäuser Werner"]
[33010,"Spreng Dominic"]
[33009,"Spreng Markus"]
[15384,"Winter Wilfried"]
[8078,"Belgar Irene"]
[8080,"Belgar Rene"]
[8112,"Block Alexander"]
[8188,"Castro Ferdinand"]
[8245,"Dietz Christian"]
[8258,"Dorfmeister Daniel"]
[8309,"Fischer Alexander"]
[8334,"Forster Fred"]
[8337,"Forster Petra"]
[8815,"Mielke Melanie"]
[8869,"Muthig Jasmin"]
[8816,"Thieme Sigrid"]
[15966,"Boeske Christian"]
[15745,"Brandtscheidt Steven"]
[8223,"Deppisch Günter"]
[8224,"Deppisch Sandra"]
[8253,"Döll Angela"]
[15439,"Döll Andreas"]
[8255,"Domesle Christine"]
[15936,"Domesle Roger"]
[15625,"Dörflinger Justus"]
[15763,"Eisenberg Christina"]
[8340,"Frank Sabine"]
[15957,"Gittel Andreas"]
[15610,"Glaßmann Regina"]
[15611,"Glaßmann Wolfgang"]
[8397,"Glaum Marina"]
[15989,"Glück Andreas"]
[33025,"Grützner Petra"]
[15609,"Heckmann Matthias"]
[15518,"Höck Michael"]
[15554,"Höck Laura"]
[8717,"Lambracht Waltraud"]
[8719,"Lang Christel"]
[8727,"Lassiter Semra"]
[15764,"Löschnig Stephan"]
[15822,"Mansmann Harald"]
[15924,"Mc Allen Manuel"]
[8832,"Möller Beate"]
[15809,"Nater Celia"]
[15019,"Roberts Maurice"]
[15140,"Schomaker Ralf-Thomas"]
[15828,"Seifert Kathrin"]
[15293,"Trebbien Uwe"]
[15346,"Weber Carla"]
[15752,"Wiacek Nadine"]
[15765,"Wiacek Christopher"]
[33034,"Wolf Matthias"]
[8093,"Bien Martin"]
[8366,"Gangi-Chiodo Francesco"]
[15750,"Klein Peter-Jürgen"]
[8690,"Kostial Hans-Joachim"]
[8967,"Primbs Paul"]
[8993,"Reichert Klaus"]
[15172,"Schweitzer Jürgen"]
[15263,"Tappert Jörg"]
[15282,"Thurk Rolf"]
[15884,"Almeida Vitor"]
[8026,"Armbrüster Alfred"]
[8081,"Bellanti Vincenzo"]
[8097,"Biersack Karl"]
[8124,"Böhne Thomas"]
[8168,"Burger Kurt"]
[8198,"Comunale Antonio"]
[8324,"Flemming Claus-Dieter"]
[33022,"Hartsch David"]
[15893,"Herzberger Björn"]
[8667,"Koch Andreas"]
[15915,"Kostial Daniel"]
[8712,"Kumpf Jürgen"]
[8865,"Munske Rolf"]
[8933,"Penkwitz Axel"]
[15880,"Ress Andreas"]
[15866,"Stasik Mike"]
[15274,"Thierfelder Andreas"]
[15396,"Wolff Gerhard"]
[15495,"Becke Jens"]
[15777,"Böff Ralf"]
[15843,"Bogdoll Pascal"]
[8172,"Buse Susanne"]
[15574,"Decristan Angelika"]
[15939,"Dinsenbacher Marco"]
[8321,"Fischer Yvonne"]
[15778,"Fischer Sylvia"]
[15832,"Fischer Heike"]
[15759,"Geibel Markus"]
[15872,"Göbel Thomas"]
[15668,"Gödde Birgit"]
[8460,"Haring Helga"]
[8461,"Haring Klaus"]
[8471,"Heck-Seipel Lydia"]
[15868,"Heuckeroth Ursula"]
[15779,"Huste Alexander"]
[8596,"Jannusch Ingo"]
[18938,"Körber Martina"]
[15768,"Krämer Tobias"]
[15632,"Kraus Sabine"]
[15663,"Kraus Matthias"]
[33037,"Krug Reiner"]
[15497,"Krüger Carmen"]
[15499,"Krüger Michael"]
[15500,"Krüger Tamara"]
[33080,"Kügler Claudia Stephanie"]
[8729,"Lassiter Yasemin"]
[15807,"May Christine"]
[15701,"Mengel Mark"]
[8800,"Merkle Herbert"]
[15831,"Pacelt Dominik"]
[15700,"Pellmann Heike"]
[8987,"Rauthe Manfred"]
[5790,"Rocke Marcel"]
[33111,"Rohn Selina"]
[33036,"Rohn Jörg"]
[15950,"Schuck Dennis"]
[15776,"Schülner Sabrina"]
[15184,"Seipel Walter"]
[33042,"Staudte Thomas"]
[33050,"Staudte Anita"]
[15548,"Thelen Stanley"]
[15911,"Tomic Robert"]
[15751,"Toussaint Daniela"]
[15318,"Verdecchia Robert"]
[15772,"Völker Terry"]
[15799,"Wargowski Thomas"]
[15225,"Weiler Julian"]
[15360,"Weissbeck Sven"]
[15378,"Wilczek Andreas"]
[8233,"Diegelmann Axel"]
[15736,"Dull David"]
[8711,"Kühne Willy"]
[15124,"Schmitt Wolfgang"]
[10130,"Balz Arthur"]
[10052,"Becker Jens"]
[15853,"Borzych Angelika"]
[10230,"Diehle Daniel"]
[13779,"Eisermann Dirk"]
[15931,"Fürstenberg Marvin"]
[15948,"Köhler Ralf"]
[15968,"Markus Eugen"]
[10129,"Maus Joshua"]
[15987,"Puder Alexander"]
[15044,"Rühl Reinhard"]
[15854,"Saupe Jens"]
[15850,"Schmidt Stefan"]
[33066,"Spangenberg Karsten"]
[12734,"Steinwehr Steffen"]
[15852,"Zambon Adriano"]
[15864,"Zuhl Tanja"]
[8030,"Aufschläger Ulrike"]
[8108,"Blickhan Gaby"]
[8110,"Blickhan Julia"]
[15158,"Gutzwiller Nicole"]
[8463,"Harth Andrea"]
[8483,"Heilmann Jürgen"]
[8524,"Herrmann Roland"]
[8568,"Hospe Thilo"]
[8651,"Klein Detlef"]
[8688,"Koslowsky Ralf"]
[545,"Maurer Toni"]
[8818,"Milde Roland"]
[8822,"Ming Benjamin"]
[15589,"Ming Frederick"]
[8877,"Neldner Dominic"]
[8878,"Neldner Udo"]
[8879,"Neldner Ute"]
[8924,"Paparaphiou Jessica"]
[15127,"Schneider Christine"]
[15788,"Schneider Marcel"]
[15806,"Schüler Christian"]
[15208,"Spendler Peggy"]
[15246,"Stolte Manuela"]
[15277,"Thomas Benjamin"]
[15278,"Thomas Hans-Jürgen"]
[15292,"Tragbar Thomas"]
[15377,"Wiesner Gerald"]
[15947,"Adjei Danilo"]
[33011,"Adler Tamara"]
[8018,"Ammer Frank"]
[8045,"Barth Jeannine"]
[15742,"Barth Birgit"]
[15823,"Bott Inge"]
[33040,"Budimir Joseph"]
[15897,"Coleman Jason"]
[31252,"Degenhardt Lea"]
[8227,"Deters Susanne"]
[15773,"Diekert Johannes"]
[8259,"Dorfmeister Gabriele"]
[8278,"Eylardi Achim"]
[8279,"Eylardi Michaela"]
[15962,"Fastus Lars"]
[15790,"Franz Sabine"]
[8369,"Gracia-Esteban Lydia"]
[8420,"Grein Michael"]
[8630,"Heidt Angelika"]
[8494,"Helfrich Regina"]
[33075,"Helfrich Rainer"]
[26519,"Hesbacher Laura"]
[8557,"Höhler Sieglinde"]
[26185,"Kirsch Tina"]
[26101,"Lazar Shirley"]
[15628,"Leuthner Lena"]
[33019,"Löw Maximilian"]
[8804,"Meurer Marius"]
[8805,"Meurer Sylvia"]
[15791,"Meyer Herbert Andreas"]
[15824,"Pietzsch Frank"]
[15631,"Reich Kirsten"]
[15544,"Rifinius Nadja"]
[15545,"Rifinius Katha"]
[15251,"Schrank Nicole"]
[15153,"Schudt Gerhard"]
[15156,"Schülke Peter"]
[26115,"Schütz Martina"]
[15200,"Slawik Miriam"]
[15780,"Speck Helene"]
[15272,"Then Manuela"]
[26454,"Zunker Samantha"]
[10065,"Aljakrinskij Alexander"]
[10066,"Aljakrinskij Natalia"]
[8153,"Brookes-Kiefer Elaine"]
[8176,"Cabrera Tudela Antonio"]
[8190,"Chalkidis Anastasios"]
[15784,"Cussler Karl"]
[33067,"Derleth Michael"]
[8225,"Desiderio Giovanni"]
[15941,"Dietrich Andreas"]
[15709,"Drabe Sven"]
[8276,"Engisch Erhard"]
[15504,"Förster Dirk"]
[8343,"Franzmann Bert"]
[8357,"Frye Karl-Heinz"]
[15908,"Gromek Claudia"]
[15486,"Gulla Edelgard Monika"]
[8437,"Gunkel Sören"]
[8459,"Hardt Werner"]
[15531,"Hartmann Philipp"]
[15521,"Hastedt Ulla"]
[8490,"Held Ernst"]
[8492,"Held Waltraud"]
[8516,"Hentschel Ilona"]
[15914,"Herzberger Jennifer"]
[8535,"Hicke Sebastian"]
[8539,"Hilger Detlef"]
[8595,"Jankowski Detlev"]
[33032,"Jourdan Frank"]
[15562,"Kasinski Joel"]
[8639,"Kiefer Michael"]
[10069,"Knobloch Joerg"]
[28108,"Kolander Torsten"]
[15879,"Krock Christian"]
[33048,"Lella Michele Antonio"]
[8755,"Lopez Rodrigues Raul"]
[15782,"Machura Sandra"]
[15783,"Machura Damian"]
[8777,"Mank Mike"]
[8778,"Mank Siegfried"]
[8793,"Mazzon Stefan"]
[8830,"Mögle Horst"]
[33090,"Nessel Gerald"]
[15929,"Rejzek Alexander"]
[15037,"Rossel Reiner"]
[15512,"Rust Steven"]
[15567,"Rust Martina"]
[15075,"Schenk Peter"]
[15120,"Schmitt Hans-Werner"]
[20654,"Schmitz Christoff"]
[15128,"Schneider Friedrich"]
[15129,"Schneider Gisela"]
[15130,"Schneider Günter"]
[12620,"Schutte Saskia"]
[15213,"Spot Heinz"]
[33110,"Suchy Nikolai"]
[15549,"Thode Karl-Heinz"]
[15307,"Ullrich-Weiss Renate"]
[33096,"Winkelmann Marco"]
[15563,"Zitzmann Jan Eric"]
[15717,"Bauer Hans Jürgen"]
[12869,"Baumann Norbert"]
[12996,"Baumann Gabriele"]
[8138,"Brandes Gabriele"]
[8139,"Brandes Matthias"]
[8221,"Dennechaud Renate"]
[15737,"Deppisch Andrea"]
[15670,"Dobrindt Oliver"]
[15671,"Dobrindt Michaela"]
[8264,"Duplois Petra"]
[15719,"Ehrmann Monika"]
[15930,"Flores Christina"]
[8346,"Fricke Andreas"]
[15875,"Habermann Cornelia"]
[8445,"Hafemann Gerhard"]
[8581,"Ilzhöfer Ilka"]
[33081,"Jantke Dunja"]
[15997,"Knoblauch Tobias"]
[8734,"Laun Stephanie"]
[8735,"Laun Werner"]
[33018,"Leutwiler Sabine"]
[14750,"Möbius Peter"]
[8895,"Nolte Joachim"]
[8931,"Pelz Marianne"]
[8952,"Plesch Uschi"]
[15464,"Reul Olaf"]
[15043,"Rühl Marion"]
[15051,"Sabo Christine"]
[15057,"Sanchez Diana"]
[15923,"Schäfer Sandro"]
[15716,"Schmied Monika"]
[15724,"Schmied Kevin"]
[15978,"Schneider Scarlett-Alice"]
[15472,"Schönhoff Andreas"]
[15735,"Schulz Lutz"]
[15979,"Steinbrückner Enola-Maria"]
[15802,"Tauchmann Christian"]
[15556,"Theobald Anja"]
[15928,"Veenstra Joshua"]
[15718,"Wollschläger Thomas"]
[8033,"Aust Michael"]
[15890,"Bertsch Hans-Joachim"]
[8158,"Brunner Waldemar"]
[8187,"Carter Anthony"]
[8205,"Custodio-Simon Elena"]
[8230,"Di Gregorio Gaetano"]
[33106,"Geck Maurice"]
[8374,"Geck Rainer"]
[8689,"Geck Petra"]
[8421,"Greulich Karl-Peter"]
[8446,"Haft Ursula"]
[8465,"Harth Wilfried"]
[8477,"Heger Siegfried"]
[15687,"Hruschka Stephan"]
[15534,"Masak Christiane"]
[15658,"Masak Dieter"]
[8819,"Miller Frank-Robert"]
[8820,"Miller Iris"]
[8975,"Rademacher Klaus"]
[15148,"Schröder Martina"]
[15999,"Siess Ursula"]
[15214,"Spot Martin"]
[15289,"Toegel-Bertsch Sieglinde"]
[15298,"Treutel Stefan"]
[15580,"Wahl Marleen"]
[15382,"Winkler Werner"]
[15400,"Wühr Lothar-Josef"]
[8013,"Albert Stefan"]
[8037,"Baier Michael"]
[8044,"Barth Dietmar"]
[23125,"Berk Johannes"]
[26070,"Bernau Axel"]
[10166,"Berndt Ernst"]
[8129,"Bonnert Jürgen"]
[8131,"Born Wilhelm"]
[15502,"Born Achim"]
[10193,"Caldwell James"]
[8249,"Dillenseger Pascal"]
[8254,"Doll-Dillenseger Kerstin"]
[33030,"Drefs Steffen"]
[15935,"Fleischhacker Michael"]
[8338,"Förster Petra"]
[15827,"Gertenbach Sabine"]
[8417,"Grechenig Ferdinand"]
[15647,"Greenaway Jesse"]
[15958,"Grieb Waldemar"]
[26087,"Groß Manuel"]
[8428,"Grossmuth Erol"]
[8441,"Hack Dietmar"]
[15981,"Hauck Mark"]
[26181,"Hirth Steffen"]
[8546,"Hlavinka Pascal"]
[33014,"Hunkel Beate"]
[33086,"Hunkel Viktoria"]
[33015,"Jantschik Leonhard"]
[8612,"Jünemann Klaus"]
[8618,"Kaiser Michael"]
[33070,"Kaiser Dominik"]
[26296,"Korol Stefan"]
[8728,"Lassiter Wayne"]
[26098,"Laukaitis Patrick"]
[8799,"Melson Klaus"]
[8814,"Micianova Jana"]
[15970,"Nattermann Hubert"]
[33069,"Passrugger Karin"]
[26108,"Rathgeber Klaus"]
[15012,"Reuter Agnes"]
[15013,"Reuter Winfried"]
[15026,"Roeder Christoph"]
[15065,"Schäfer Jürgen"]
[15648,"Schlamp Matthias"]
[15440,"Schlösser Patrick"]
[15162,"Schulz Petra"]
[15943,"Tambosi Michael"]
[15454,"Tanhaei-Bazkiaei Djamshid"]
[15310,"Unger Bernd"]
[15350,"Weidling Wolfgang"]
[15359,"Weissbeck Bernd"]
[15956,"Wendt Sylvia"]
[15980,"Aulbach Klaus"]
[15995,"Berg Tobias"]
[8127,"Bolzmann Dagmar"]
[33031,"Bugs Sven"]
[8173,"Buskowiak Thomas"]
[15945,"Clouser John"]
[8319,"Fischer Thomas"]
[15882,"Haberlick Alexander"]
[8451,"Hahn Dietmar"]
[10208,"Hahn Sascha"]
[15618,"Hahn Angelika"]
[15881,"Hassenpflug Marcel"]
[15885,"Hochhaus Jonny"]
[15891,"Hochhaus Jan"]
[15937,"Hochhaus Barbara"]
[8561,"Hormann Bettina"]
[15619,"Jakobi Manfred"]
[8611,"Jox Thomas"]
[8627,"Kasten Hildegard"]
[8720,"Lang Claudia"]
[15940,"Popp Stefan"]
[8970,"Pürzl Christel"]
[8971,"Pürzl Rebecca"]
[15938,"Rödler Max"]
[15883,"Roth Wolfgang"]
[33029,"Rothenbacher Ralph"]
[10111,"Schlier Elisabeth"]
[10110,"Stock Ulrich"]
[15297,"Trendel Richard"]
[15996,"Trendel Marvin"]
[15337,"Walter Gerhard"]
[15982,"Wiegand Hans"]
[15994,"Wiegand Nico"]
[8021,"Anna Klaus"]
[8022,"Anna Ursula"]
[8116,"Bloedow Helene"]
[8556,"Hofmann Gerd"]
[8610,"Josupeit Iris"]
[8648,"Kläser Richard"]
[15493,"Pusch Elli"]
[8982,"Rau Dieter"]
[8983,"Rau Waltraud"]
[15018,"Ritter V.Uleniecki Michael"]
[15125,"Schmitzer Joachim"]
[15198,"Slawik Cornelia"]
[15252,"Strecker Roland"]
[15394,"Wölfel Klaus"]